bitfinex/quotes_BTCUSD_20220218
["timestamp","ask_amount","ask_price","bid_price","bid_amount"]
[1645154595292,0.00037184,40674.0,40668.0,0.01540992]
[1645154595491,0.0002474,40671.0,40668.0,0.07690292]
[1645154595689,0.0002474,40671.0,40670.0,0.061491]
[1645154595893,0.00061924,40671.0,40670.0,0.314843]
[1645154596192,0.2086769,40676.0,40670.0,0.314843]
[1645154596193,0.00037184,40674.0,40670.0,0.663843]
[1645154596391,0.1824,40684.0,40670.0,0.663843]
[1645154596392,0.00037184,40675.0,40670.0,0.663843]
[1645154596598,0.0002474,40673.0,40670.0,1.107098]
[1645154596792,0.0002474,40673.0,40670.0,0.807098]
[1645154596989,0.0002474,40673.0,40670.0,0.86856863]
[1645154597190,0.0002474,40673.0,40671.0,0.234403]
[1645154597390,0.0002474,40673.0,40672.0,0.425271]
[1645154597591,0.00037184,40677.0,40672.0,0.486739]
[1645154597790,0.3910769,40684.0,40673.0,0.12294]
[1645154597791,0.00024739,40674.0,40673.0,0.12294]
[1645154597993,0.00024739,40674.0,40673.0,0.425268]
[1645154598493,0.00024739,40674.0,40673.0,0.787935]
[1645154598694,0.00037184,40683.0,40673.0,0.787935]
[1645154598939,0.42143874,40687.0,40678.0,0.0614679]
[1645154598940,0.00037184,40684.0,40678.0,0.0614679]
[1645154599142,0.42143874,40687.0,40679.0,0.253279]
[1645154599143,0.00037184,40686.0,40679.0,0.253279]
[1645154599341,0.42181058,40687.0,40679.0,0.253279]
[1645154599539,0.00037184,40686.0,40680.0,0.06147]
[1645154599739,0.30687728,40686.0,40681.0,0.31473]
[1645154599939,0.30724912,40686.0,40682.0,0.061466]
[1645154600140,0.0002324,40685.0,40682.0,0.061466]
[1645154600339,0.00060424,40685.0,40682.0,0.061466]
[1645154600539,0.0002324,40685.0,40682.0,0.061466]
[1645154600740,0.0002324,40685.0,40682.0,0.122931]
[1645154600940,0.00060424,40685.0,40682.0,0.122931]
[1645154601239,0.00037184,40687.0,40682.0,0.122931]
[1645154601440,0.0002324,40686.0,40683.0,0.061469]
[1645154601645,0.24949512,40685.0,40677.0,0.34843978]
[1645154601841,0.24986696,40685.0,40678.0,0.302283]
[1645154602239,0.00037184,40685.0,40683.0,0.001]
[1645154602441,0.00037184,40687.0,40683.0,0.001]
[1645154602693,0.00023576,40684.0,40683.0,0.062468]
[1645154603095,0.00023576,40684.0,40683.0,0.123936]
[1645154603293,0.00023576,40684.0,40683.0,0.377186]
[1645154603492,0.00037184,40685.0,40683.0,0.377186]
[1645154603693,0.0006076,40686.0,40684.0,0.499096]
[1645154603892,0.00023576,40686.0,40684.0,0.245852]
[1645154604693,0.00037184,40686.0,40684.0,0.245852]
[1645154604893,0.20133218,40687.0,40684.0,0.245852]
[1645154605093,0.00037184,40686.0,40684.0,0.245852]
[1645154605294,0.20119609,40687.0,40684.0,0.245852]
[1645154605593,0.00037184,40686.0,40684.0,0.485852]
[1645154605794,0.20156793,40687.0,40684.0,0.485852]
[1645154605996,0.20096034,40687.0,40684.0,0.485852]
[1645154606196,0.20119307,40687.0,40684.0,0.485852]
[1645154607042,0.20096034,40687.0,40684.0,0.24]
[1645154607643,0.20133218,40687.0,40684.0,0.24]
[1645154608444,0.20096034,40687.0,40684.0,0.24]
[1645154608644,0.20133218,40687.0,40684.0,0.24]
[1645154608946,0.332239,40686.0,40684.0,0.24]
[1645154609144,0.00037184,40686.0,40684.0,0.24]
[1645154609349,0.20133218,40687.0,40684.0,0.24]
[1645154609545,0.332239,40686.0,40684.0,0.24]
[1645154609845,0.20119325,40687.0,40684.0,0.24]
[1645154610093,0.00037184,40686.0,40684.0,0.24]
[1645154610288,0.20119325,40687.0,40684.0,0.24]
[1645154610289,0.20156509,40687.0,40684.0,0.24]
[1645154610489,0.20119325,40687.0,40684.0,0.24]
[1645154610689,0.20096034,40687.0,40684.0,0.24]
[1645154611289,0.20133218,40687.0,40684.0,0.24]
[1645154611689,0.20133218,40687.0,40684.0,0.30147]
[1645154612092,0.20096034,40687.0,40684.0,0.30147]
[1645154612291,0.20133218,40687.0,40684.0,0.30147]
[1645154613294,0.20096034,40687.0,40684.0,0.30147]
[1645154613492,0.20096034,40687.0,40684.0,0.36294]
[1645154613693,0.20133218,40687.0,40684.0,0.36294]
[1645154614339,0.20133218,40687.0,40684.0,0.16351592]
[1645154614542,0.20096034,40687.0,40684.0,0.16351592]
[1645154614742,0.20133218,40687.0,40684.0,0.16351592]
[1645154615542,0.20133218,40687.0,40684.0,0.22498592]
[1645154615742,0.20096034,40687.0,40684.0,0.22498592]
[1645154615943,0.20133218,40687.0,40684.0,0.22498592]
[1645154616144,0.20133218,40687.0,40684.0,0.22598592]
[1645154616948,0.20096034,40687.0,40684.0,0.22598592]
[1645154617151,0.20133218,40687.0,40684.0,0.22598592]
[1645154617598,0.20133218,40687.0,40684.0,0.12294]
[1645154618194,0.20096034,40687.0,40682.0,0.122945]
[1645154618394,0.20133218,40687.0,40682.0,0.122945]
[1645154618794,0.20133218,40687.0,40682.0,0.061472]
[1645154619396,0.20119324,40687.0,40682.0,0.061472]
[1645154620197,0.20119324,40687.0,40682.0,0.062472]
[1645154620399,0.20096034,40687.0,40683.0,0.061468]
[1645154620600,0.20119324,40687.0,40684.0,0.061469]
[1645154620799,0.20119324,40687.0,40684.0,0.122939]
[1645154621199,0.20156508,40687.0,40684.0,0.122939]
[1645154621637,0.20133218,40687.0,40684.0,0.122939]
[1645154623438,0.20133218,40687.0,40684.0,0.184406]
[1645154624042,0.20133218,40687.0,40685.0,0.061468]
[1645154624240,0.20096034,40687.0,40685.0,0.061468]
[1645154624440,0.20133218,40687.0,40685.0,0.061468]
[1645154625190,0.00037184,40687.0,40685.0,0.061468]
[1645154625390,0.00060473,40688.0,40685.0,0.061468]
[1645154625592,0.00023289,40688.0,40685.0,0.122935]
[1645154625789,0.00060473,40688.0,40686.0,0.061466]
[1645154625993,0.00023289,40688.0,40686.0,0.061466]
[1645154626193,0.00060473,40688.0,40686.0,0.061466]
[1645154626391,0.21814874,40689.0,40686.0,0.061466]
[1645154626592,0.00037184,40688.0,40687.0,0.061466]
[1645154626793,0.21838163,40689.0,40687.0,0.061466]
[1645154627495,0.21814874,40689.0,40687.0,0.061466]
[1645154627691,0.2086769,40688.0,40687.0,0.061466]
[1645154628293,0.21814874,40689.0,40687.0,0.061466]
[1645154628493,0.21814874,40689.0,40687.0,0.122932]
[1645154628943,0.21814874,40689.0,40687.0,0.342932]
[1645154629342,0.2918791,40689.0,40687.0,0.342932]
[1645154629842,0.2086769,40688.0,40687.0,0.342932]
[1645154630443,0.2918791,40689.0,40687.0,0.342932]
[1645154630842,0.2918791,40689.0,40687.0,0.281466]
[1645154631043,0.2918791,40689.0,40687.0,0.22]
[1645154631643,0.2086769,40688.0,40682.0,0.245857]
[1645154631844,0.2086769,40688.0,40681.0,0.36657056]
[1645154631845,0.00037184,40688.0,40680.0,0.25327]
[1645154632043,0.2086769,40688.0,40680.0,0.25327]
[1645154632243,0.20904874,40688.0,40680.0,0.25327]
[1645154632444,0.20904874,40688.0,40682.0,0.253256]
[1645154632694,0.0002329,40686.0,40683.0,0.12293]
[1645154632992,0.0002329,40686.0,40685.0,0.061466]
[1645154633190,0.0002329,40686.0,40685.0,0.314701]
[1645154633593,0.20904874,40687.0,40685.0,0.314701]
[1645154633792,0.2086769,40687.0,40685.0,0.314701]
[1645154633991,0.20904874,40687.0,40685.0,0.314701]
[1645154634393,0.20904874,40687.0,40685.0,0.1156145]
[1645154634993,0.2086769,40687.0,40685.0,0.1156145]
[1645154635196,0.20893191,40687.0,40685.0,0.1156145]
[1645154635695,0.00037184,40687.0,40685.0,0.1770805]
[1645154635894,0.26121797,40688.0,40685.0,0.061466]
[1645154636094,0.00037184,40687.0,40686.0,0.11562]
[1645154636338,0.26145086,40688.0,40685.0,0.061466]
[1645154636540,0.00037184,40687.0,40685.0,0.061466]
[1645154636740,0.26084613,40687.0,40685.0,0.061466]
[1645154636939,0.26121797,40687.0,40685.0,0.061466]
[1645154637341,0.26084613,40687.0,40685.0,0.061466]
[1645154637541,0.26121797,40687.0,40685.0,0.061466]
[1645154638641,0.39572272,40689.0,40685.0,0.061466]
[1645154638642,0.26084613,40686.0,40685.0,0.061466]
[1645154638840,0.26084613,40686.0,40685.0,0.177089]
[1645154639242,0.26084613,40686.0,40685.0,0.061466]
[1645154639545,0.00037184,40687.0,40685.0,0.177091]
[1645154639743,0.31289236,40687.0,40685.0,0.22]
[1645154639942,0.3132642,40687.0,40685.0,0.22]
[1645154640591,0.31289236,40686.0,40685.0,0.22]
[1645154640989,0.31289236,40686.0,40685.0,0.115625]
[1645154641788,0.00037184,40687.0,40684.0,0.122935]
[1645154641990,0.31364255,40686.0,40682.0,0.06147]
[1645154642189,0.3,40687.0,40680.0,0.001]
[1645154642190,0.26137045,40683.0,40680.0,0.001]
[1645154642393,0.56137045,40682.0,40680.0,0.001]
[1645154643094,0.53146597,40681.0,40680.0,0.001]
[1645154643289,0.79283642,40681.0,40680.0,0.001]
[1645154643694,0.79283642,40681.0,40673.0,0.061483]
[1645154643939,0.79320826,40681.0,40674.0,0.115664]
[1645154644140,0.26137045,40680.0,40674.0,0.115664]
[1645154644340,0.26174229,40680.0,40674.0,0.115664]
[1645154644541,0.26197521,40680.0,40674.0,0.115664]
[1645154645338,0.20909334,40678.0,40674.0,0.32523507]
[1645154645539,0.20909334,40678.0,40674.0,0.115664]
[1645154646340,0.00023292,40679.0,40674.0,0.115664]
[1645154646539,0.00023292,40679.0,40674.0,0.11567]
[1645154646741,0.25944138,40674.0,40673.0,0.27105107]
[1645154646940,0.25944138,40674.0,40673.0,0.32524407]
[1645154647141,0.25944138,40674.0,40673.0,0.115673]
[1645154647607,0.26137045,40678.0,40672.0,0.061482]
[1645154647901,0.26137045,40678.0,40673.0,0.115675]
[1645154648102,0.00023293,40677.0,40673.0,0.115675]
[1645154648804,0.00023293,40677.0,40673.0,0.177155]
[1645154649203,0.32285046,40679.0,40673.0,0.38672607]
[1645154649204,0.06148001,40679.0,40673.0,0.38672607]
[1645154649404,0.00023293,40677.0,40673.0,0.44820707]
[1645154649807,0.00023293,40677.0,40674.0,0.06148]
[1645154650005,0.00023293,40677.0,40675.0,0.115668]
[1645154650507,0.27926907,40679.0,40675.0,0.115668]
[1645154650708,0.00023292,40678.0,40675.0,0.115668]
[1645154651342,0.20905085,40677.0,40675.0,0.115668]
[1645154651743,0.54063952,40679.0,40675.0,0.115668]
[1645154651744,0.20905085,40678.0,40675.0,0.115668]
[1645154651941,0.20905085,40677.0,40675.0,0.115668]
[1645154652141,0.20905085,40678.0,40675.0,0.115668]
[1645154652543,0.20905085,40678.0,40675.0,0.177147]
[1645154653552,0.20905085,40678.0,40676.0,0.061478]
[1645154653746,0.20905085,40678.0,40677.0,0.11566]
[1645154653947,0.20905085,40678.0,40676.0,0.115663]
[1645154654246,0.20905085,40678.0,40676.0,0.116663]
[1645154654447,0.20905085,40678.0,40676.0,0.001]
[1645154654648,0.20905085,40678.0,40677.0,0.11566]
[1645154655291,0.20905085,40678.0,40676.0,0.001]
[1645154655694,0.20905085,40678.0,40677.0,0.11566]
[1645154655890,0.21778906,40679.0,40676.0,0.001]
[1645154656294,0.20905262,40678.0,40677.0,0.001]
[1645154656494,0.21778906,40679.0,40677.0,0.001]
[1645154656693,0.20904972,40678.0,40677.0,0.001]
[1645154656892,0.21778906,40679.0,40677.0,0.001]
[1645154657091,0.20904973,40678.0,40677.0,0.001]
[1645154657292,0.20904571,40678.0,40677.0,0.00089658]
[1645154658093,0.89354545,40678.0,40677.0,0.00089658]
[1645154658294,0.3,40678.0,40672.0,0.001]
[1645154658498,0.20901846,40673.0,40672.0,0.001]
[1645154658697,0.26127307,40675.0,40672.0,0.001]
[1645154658940,0.3,40678.0,40672.0,0.001]
[1645154658941,0.26127307,40674.0,40672.0,0.001]
[1645154659241,0.2810142,40673.0,40672.0,0.001]
[1645154660241,0.2810142,40673.0,40670.0,0.3818]
[1645154660440,0.49097298,40673.0,40670.0,0.3818]
[1645154661044,0.20895878,40672.0,40670.0,0.3818]
[1645154661245,0.49097298,40673.0,40670.0,0.3818]
[1645154661740,0.48997298,40673.0,40670.0,0.29659336]
[1645154662340,0.49097298,40673.0,40670.0,0.29659336]
[1645154662991,0.19549091,40672.0,40670.0,0.29659336]
[1645154663796,0.20919142,40673.0,40670.0,0.29659336]
[1645154664292,0.00023264,40673.0,40670.0,0.29759336]
[1645154664692,0.00023264,40673.0,40670.0,0.35907936]
[1645154664892,0.58066071,40673.0,40670.0,0.29759336]
[1645154665694,0.58066071,40673.0,40670.0,0.29659336]
[1645154666450,0.58066071,40673.0,40670.0,0.29759336]
[1645154667148,0.53066071,40673.0,40670.0,0.29759336]
[1645154667749,0.5921511,40673.0,40670.0,0.29759336]
[1645154668148,0.5921511,40673.0,40670.0,0.29659336]
[1645154668349,0.5931511,40673.0,40670.0,0.29659336]
[1645154669349,0.3551467,40673.0,40670.0,0.29659336]
[1645154669550,0.29365631,40673.0,40670.0,0.29659336]
[1645154669949,0.001,40673.0,40670.0,0.29659336]
[1645154670387,0.001,40673.0,40670.0,0.29759336]
[1645154670989,0.001,40673.0,40671.0,0.115684]
[1645154671789,0.00023293,40674.0,40671.0,0.115684]
[1645154671989,0.0094,40675.0,40671.0,0.177165]
[1645154672287,0.00023293,40674.0,40671.0,0.061481]
[1645154672490,0.00023293,40674.0,40672.0,0.42180008]
[1645154672687,0.00023293,40674.0,40672.0,0.36760108]
[1645154673088,0.0094,40675.0,40672.0,0.36760108]
[1645154673288,0.0094,40675.0,40672.0,0.49056208]
[1645154673490,0.00963293,40675.0,40672.0,0.36760008]
[1645154673944,0.00963293,40675.0,40672.0,0.30612008]
[1645154674148,0.25656629,40674.0,40670.0,0.29659336]
[1645154674456,0.25656629,40674.0,40672.0,0.001]
[1645154674457,0.332175,40673.0,40672.0,0.001]
[1645154674644,0.46552507,40674.0,40672.0,0.001]
[1645154674942,0.5385096,40674.0,40672.0,0.001]
[1645154675144,0.58448903,40673.0,40672.0,0.001]
[1645154675545,0.25231403,40673.0,40672.0,0.001]
[1645154675848,0.25231403,40673.0,40670.0,0.29659336]
[1645154676046,0.3138087,40673.0,40670.0,0.29659336]
[1645154676448,0.34992961,40671.0,40670.0,0.29659336]
[1645154678295,0.06149342,40672.0,40670.0,0.29659336]
[1645154678495,0.002,40671.0,40670.0,0.29659336]
[1645154679301,0.002,40671.0,40670.0,0.41228336]
[1645154679498,0.002,40671.0,40670.0,0.29659336]
[1645154680397,0.28011757,40673.0,40670.0,0.29759336]
[1645154680598,0.28035051,40673.0,40670.0,0.29759336]
[1645154680801,0.28035051,40673.0,40670.0,0.35908136]
[1645154681199,0.00023294,40673.0,40670.0,0.35908136]
[1645154681640,0.06148877,40674.0,40670.0,0.35908136]
[1645154681846,0.06172171,40674.0,40670.0,0.35808136]
[1645154682045,0.00023294,40674.0,40670.0,0.35808136]
[1645154682242,0.44382783,40675.0,40670.0,0.35808136]
[1645154683343,0.44382783,40675.0,40670.0,0.41956836]
[1645154683943,0.44382783,40675.0,40670.0,0.35808136]
[1645154684345,0.44382783,40675.0,40671.0,0.061486]
[1645154684542,0.44382783,40675.0,40672.0,0.061485]
[1645154684543,0.14887172,40675.0,40672.0,0.061485]
[1645154684742,0.26127307,40678.0,40672.0,0.061485]
[1645154685392,0.00024755,40677.0,40672.0,0.061485]
[1645154685792,0.25587356,40676.0,40673.0,0.061483]
[1645154685995,0.25587356,40676.0,40673.0,0.122966]
[1645154686194,0.0617324,40677.0,40673.0,0.061483]
[1645154686393,0.06148485,40677.0,40673.0,0.062483]
[1645154686593,0.0617324,40677.0,40673.0,0.062483]
[1645154687395,0.40005597,40677.0,40673.0,0.062483]
[1645154687596,0.66108149,40677.0,40673.0,0.062483]
[1645154687897,0.66132904,40677.0,40673.0,0.061483]
[1645154688096,0.66132904,40677.0,40674.0,0.28411231]
[1645154688943,0.32275792,40677.0,40674.0,0.28411231]
[1645154689842,0.32275792,40677.0,40673.0,0.061483]
[1645154690441,0.32275792,40677.0,40673.0,0.062483]
[1645154691043,0.3538103,40676.0,40673.0,0.062483]
[1645154691244,0.41529626,40676.0,40673.0,0.062483]
[1645154691845,0.41529626,40676.0,40671.0,0.061485]
[1645154692249,0.20894096,40674.0,40671.0,0.061485]
[1645154692482,0.41529626,40676.0,40672.0,0.061486]
[1645154692483,0.20894096,40675.0,40672.0,0.061486]
[1645154692699,0.20894096,40675.0,40673.0,0.115681]
[1645154692899,0.20894096,40675.0,40673.0,0.115677]
[1645154693100,0.20894096,40675.0,40672.0,0.061484]
[1645154693298,0.20894096,40675.0,40671.0,0.001]
[1645154693499,0.20894096,40674.0,40672.0,0.115679]
[1645154693700,0.20894096,40674.0,40672.0,0.46266309]
[1645154693900,0.20894096,40675.0,40672.0,0.46266309]
[1645154694101,0.20894096,40675.0,40673.0,0.115678]
[1645154694402,0.20894096,40675.0,40673.0,0.115676]
[1645154694600,0.20894096,40674.0,40673.0,0.122964]
[1645154694807,0.20894096,40676.0,40673.0,0.177158]
[1645154695001,0.20918852,40676.0,40673.0,0.061482]
[1645154695201,0.20918852,40676.0,40674.0,0.115673]
[1645154695402,0.20918852,40676.0,40674.0,0.115672]
[1645154696104,0.20894096,40676.0,40675.0,0.06148]
[1645154697244,0.26127307,40678.0,40675.0,0.06148]
[1645154697548,0.20908797,40676.0,40675.0,0.06148]
[1645154698544,0.20908797,40676.0,40675.0,0.001]
[1645154698946,0.20908797,40676.0,40675.0,0.116668]
[1645154699144,0.26152062,40678.0,40675.0,0.116668]
[1645154699145,0.20908797,40677.0,40675.0,0.116668]
[1645154699545,0.21908797,40679.0,40675.0,0.116668]
[1645154699945,0.00024755,40678.0,40676.0,0.122939]
[1645154700198,0.00024755,40678.0,40677.0,0.11566]
[1645154700994,0.21908797,40679.0,40677.0,0.11566]
[1645154701893,0.21908797,40679.0,40678.0,0.061468]
[1645154702094,0.21908797,40679.0,40678.0,0.177123]
[1645154702496,0.20908797,40679.0,40678.0,0.178123]
[1645154702994,0.00024754,40680.0,40678.0,0.178123]
[1645154702995,0.20933551,40680.0,40678.0,0.178123]
[1645154703195,0.33501696,40682.0,40678.0,0.178123]
[1645154703196,0.20908797,40679.0,40678.0,0.178123]
[1645154703595,0.26152061,40681.0,40678.0,0.178123]
[1645154703596,0.20908797,40680.0,40678.0,0.178123]
[1645154703847,0.20908797,40680.0,40678.0,0.177123]
[1645154704452,0.20908797,40680.0,40678.0,0.238593]
[1645154704651,0.20933551,40681.0,40679.0,0.26321613]
[1645154704852,0.20933551,40681.0,40680.0,0.177115]
[1645154705055,0.00024754,40681.0,40680.0,0.226115]
[1645154705654,0.07374389,40682.0,40680.0,0.226115]
[1645154705857,0.07374389,40682.0,40680.0,0.287576]
[1645154706656,0.07374389,40682.0,40680.0,0.289576]
[1645154706856,0.39478797,40685.0,40680.0,0.289576]
[1645154707057,0.00024753,40683.0,40682.0,0.061462]
[1645154707257,0.00024753,40683.0,40682.0,0.23856096]
[1645154707911,0.20908797,40686.0,40682.0,0.23856096]
[1645154708112,0.20908797,40686.0,40682.0,0.17709896]
[1645154708307,0.00024753,40685.0,40683.0,0.061462]
[1645154708508,0.00024753,40685.0,40684.0,0.11563]
[1645154709108,0.08323319,40688.0,40684.0,0.11563]
[1645154709109,0.20908797,40686.0,40684.0,0.11563]
[1645154709309,0.20908797,40687.0,40684.0,0.061461]
[1645154709507,0.20933549,40687.0,40684.0,0.061461]
[1645154709908,0.20933549,40687.0,40684.0,0.122921]
[1645154710312,0.20908797,40687.0,40685.0,0.06146]
[1645154710512,0.29232116,40688.0,40685.0,0.061459]
[1645154710808,0.29256868,40688.0,40685.0,0.061459]
[1645154711211,0.20908797,40687.0,40685.0,0.061459]
[1645154711448,0.29256868,40688.0,40685.0,0.122918]
[1645154711648,0.29232116,40688.0,40686.0,0.06146]
[1645154711851,0.20908797,40687.0,40686.0,0.12292]
[1645154712052,0.20908797,40687.0,40686.0,0.29873101]
[1645154712349,0.20908797,40687.0,40686.0,0.41435201]
[1645154712549,0.20908797,40687.0,40686.0,0.41535201]
[1645154712949,0.08323319,40688.0,40686.0,0.36119101]
[1645154712950,0.29232116,40688.0,40686.0,0.36119101]
[1645154713154,0.28282116,40688.0,40686.0,0.36119101]
[1645154713352,0.07373319,40688.0,40687.0,0.115616]
[1645154715999,0.20971367,40690.0,40687.0,0.122922]
[1645154716199,0.20933559,40690.0,40687.0,0.06146]
[1645154716398,0.20908797,40690.0,40687.0,0.06146]
[1645154716598,0.20971366,40691.0,40687.0,0.06246]
[1645154716798,0.20933558,40691.0,40687.0,0.06246]
[1645154717000,0.20908797,40690.0,40687.0,0.06246]
[1645154717200,0.20946605,40690.0,40687.0,0.001]
[1645154717899,0.20908797,40690.0,40687.0,0.001]
[1645154718100,0.20946605,40690.0,40687.0,0.001]
[1645154718312,0.20946605,40690.0,40687.0,0.062466]
[1645154718501,0.00137808,40690.0,40687.0,0.122928]
[1645154718947,0.00137808,40690.0,40687.0,0.061466]
[1645154719347,0.00137808,40690.0,40685.0,0.122924]
[1645154719548,0.00137808,40690.0,40688.0,0.061463]
[1645154720547,0.00037808,40690.0,40688.0,0.061463]
[1645154720748,0.20946605,40691.0,40688.0,0.061463]
[1645154720951,0.00037808,40690.0,40688.0,0.061463]
[1645154721148,0.28147674,40690.0,40688.0,0.061463]
[1645154721346,0.28185482,40690.0,40688.0,0.061463]
[1645154721750,0.28185482,40690.0,40688.0,0.02411686]
[1645154721751,0.00037808,40690.0,40688.0,0.02411686]
[1645154721950,0.20908797,40691.0,40688.0,0.02411686]
[1645154722250,0.00037808,40690.0,40688.0,0.02411686]
[1645154722452,0.20946605,40692.0,40688.0,0.061463]
[1645154722697,0.50190501,40695.0,40688.0,0.062463]
[1645154722698,0.20908797,40693.0,40688.0,0.062463]
[1645154723101,0.27377647,40691.0,40688.0,0.123924]
[1645154723501,0.20946605,40692.0,40688.0,0.123924]
[1645154723698,0.20908797,40692.0,40688.0,0.123923]
[1645154723898,0.00024836,40692.0,40688.0,0.122923]
[1645154724101,0.26127307,40695.0,40690.0,0.3]
[1645154724302,0.28257377,40696.0,40691.0,0.349]
[1645154724500,0.28257377,40696.0,40692.0,0.115593]
[1645154724501,0.07371801,40696.0,40692.0,0.115593]
[1645154724705,0.07371801,40696.0,40693.0,0.37225912]
[1645154724899,2.0,40700.0,40694.0,0.415586]
[1645154725198,2.0,40700.0,40696.0,0.115576]
[1645154725399,2.0,40700.0,40697.0,0.049]
[1645154725600,2.0,40700.0,40698.0,0.115568]
[1645154726447,2.0,40700.0,40699.0,0.061435]
[1645154726648,2.0,40700.0,40699.0,0.176999]
[1645154727348,1.99962823,40700.0,40699.0,0.176999]
[1645154730603,1.99962823,40700.0,40699.0,0.178999]
[1645154732705,1.99962823,40700.0,40699.0,0.180999]
[1645154733103,1.99962823,40700.0,40699.0,0.176999]
[1645154733506,1.99962823,40700.0,40699.0,0.526999]
[1645154735948,1.99902375,40700.0,40699.0,0.526999]
[1645154736647,1.99902375,40700.0,40699.0,0.528999]
[1645154738503,1.99902375,40700.0,40699.0,0.226999]
[1645154740407,1.99902375,40700.0,40699.0,0.526999]
[1645154742648,1.99902375,40700.0,40699.0,0.529999]
[1645154742848,1.99902375,40700.0,40699.0,0.579999]
[1645154743850,1.99902375,40700.0,40699.0,0.479999]
[1645154744451,1.99902375,40700.0,40699.0,0.476999]
[1645154744651,1.99902375,40700.0,40699.0,1.831999]
[1645154744851,1.99902375,40700.0,40699.0,0.526999]
[1645154748105,1.99902375,40700.0,40699.0,0.626999]
[1645154748705,1.99902375,40700.0,40699.0,0.676999]
[1645154749354,1.99902375,40700.0,40699.0,0.376999]
[1645154749560,1.99902375,40700.0,40699.0,0.676999]
[1645154751061,1.99902375,40700.0,40699.0,0.576999]
[1645154751062,1.76471458,40700.0,40699.0,0.576999]
[1645154751358,1.76471458,40700.0,40699.0,0.326999]
[1645154751759,1.20611866,40700.0,40699.0,0.226999]
[1645154752060,1.20611866,40700.0,40699.0,0.326999]
[1645154752258,1.20611866,40700.0,40699.0,0.376999]
[1645154753101,1.20611866,40700.0,40699.0,0.276999]
[1645154753701,1.20611866,40700.0,40699.0,0.226999]
[1645154754105,1.20611866,40700.0,40699.0,0.176999]
[1645154754304,1.20611866,40700.0,40699.0,0.115564]
[1645154756104,1.48814719,40700.0,40699.0,0.115564]
[1645154756751,1.49014719,40700.0,40699.0,0.115564]
[1645154758552,1.48814719,40700.0,40699.0,0.115564]
[1645154760702,1.20611866,40700.0,40699.0,0.115564]
[1645154762702,1.20611866,40700.0,40699.0,0.116564]
[1645154764752,1.20611866,40700.0,40699.0,0.115564]
[1645154768803,1.20611866,40700.0,40699.0,0.177006]
[1645154770405,1.41504033,40700.0,40699.0,0.177006]
[1645154771112,1.41504033,40700.0,40699.0,0.115564]
[1645154778949,1.41504033,40700.0,40699.0,0.105564]
[1645154781952,1.41525323,40700.0,40699.0,0.06901575]
[1645154786397,1.41525323,40700.0,40698.0,0.061444]
[1645154786696,1.41525323,40700.0,40694.0,0.069027]
[1645154786697,0.19142538,40697.0,40694.0,0.069027]
[1645154786897,0.3,40696.0,40694.0,0.001]
[1645154787097,0.50904437,40696.0,40694.0,0.001]
[1645154787298,0.3,40695.0,40694.0,0.001]
[1645154787501,0.54882922,40695.0,40694.0,0.001]
[1645154787697,0.75787359,40695.0,40694.0,0.001]
[1645154787898,0.54882922,40695.0,40694.0,0.001]
[1645154788498,0.75787359,40695.0,40694.0,0.001]
[1645154788699,0.061458,40694.0,40689.0,0.070042]
[1645154788898,0.30271476,40693.0,40689.0,0.070042]
[1645154789298,0.3,40692.0,40689.0,0.001]
[1645154789700,0.36146,40692.0,40689.0,0.001]
[1645154790107,0.34674723,40692.0,40689.0,0.001]
[1645154792203,0.34674723,40692.0,40687.0,0.0087]
[1645154792904,0.34774723,40692.0,40687.0,0.0087]
[1645154793303,0.06146335,40691.0,40687.0,0.0087]
[1645154793508,0.061462,40690.0,40687.0,0.0087]
[1645154794052,0.061462,40690.0,40686.0,0.3673]
[1645154794053,0.19230201,40688.0,40686.0,0.3673]
[1645154794254,0.19230201,40688.0,40682.0,0.001]
[1645154794456,0.393636,40686.0,40682.0,0.001]
[1645154794653,0.393636,40686.0,40679.0,0.20940258]
[1645154794654,0.049,40685.0,40679.0,0.20940258]
[1645154794854,0.332164,40684.0,40679.0,0.20940258]
[1645154795054,0.332164,40684.0,40674.0,0.31384066]
[1645154795055,0.2,40682.0,40674.0,0.0002466]
[1645154795253,0.51115129,40677.0,40673.0,0.0079]
[1645154795453,0.57263729,40677.0,40673.0,0.0079]
[1645154795653,0.63412329,40677.0,40673.0,0.0081466]
[1645154795852,0.63412329,40677.0,40673.0,0.0079]
[1645154796056,0.63412329,40677.0,40671.0,0.0002466]
[1645154796253,0.63412329,40677.0,40670.0,0.59554918]
[1645154796453,0.69560859,40677.0,40670.0,0.59554918]
[1645154796655,0.061486,40675.0,40670.0,0.59554918]
[1645154797256,0.061486,40675.0,40671.0,0.069105]
[1645154797456,0.061486,40675.0,40671.0,0.0002466]
[1645154797905,0.061486,40675.0,40670.0,0.3861466]
[1645154798407,0.061486,40675.0,40671.0,0.069105]
[1645154798606,0.061486,40675.0,40671.0,0.0693516]
[1645154799206,0.061486,40675.0,40673.0,1.71841013]
[1645154799605,0.061486,40675.0,40673.0,1.71865673]
[1645154800005,0.061486,40675.0,40672.0,0.069102]
[1645154802853,0.061486,40675.0,40672.0,0.070102]
[1645154804153,0.06141422,40675.0,40672.0,0.069102]
[1645154804954,0.06141422,40675.0,40672.0,0.070102]
[1645154805807,0.0099,40677.0,40672.0,0.070102]
[1645154806206,0.0099,40677.0,40672.0,0.069102]
[1645154806806,0.0099,40677.0,40672.0,0.070102]
[1645154807013,0.071377,40677.0,40672.0,0.070102]
[1645154807208,0.071377,40677.0,40672.0,0.001]
[1645154807407,0.371377,40677.0,40672.0,0.001]
[1645154808508,0.432861,40677.0,40672.0,0.001]
[1645154808711,0.132861,40677.0,40671.0,0.0002466]
[1645154808956,0.133861,40677.0,40672.0,0.069101]
[1645154809953,0.133861,40677.0,40671.0,0.0002466]
[1645154810155,0.433861,40677.0,40672.0,0.069101]
[1645154810355,0.372377,40677.0,40672.0,0.069101]
[1645154810554,0.072377,40677.0,40672.0,0.069101]
[1645154810753,0.072377,40677.0,40671.0,0.0002466]
[1645154810754,0.071377,40677.0,40671.0,0.0002466]
[1645154810954,0.071377,40677.0,40672.0,0.070101]
[1645154811154,0.071377,40677.0,40673.0,0.069099]
[1645154811355,0.071377,40677.0,40674.0,0.069097]
[1645154811557,0.071377,40677.0,40673.0,0.0002466]